bitfinex/quotes_SOLUSD_20250622
["timestamp","ask_amount","ask_price","bid_price","bid_amount"]
[1750624776931,7.4349,128.98,128.92,31.91581453]
[1750624777149,31.91581453,128.97,128.92,31.91581453]
[1750624777333,32.64581453,128.96,128.9,11.34]
[1750624777744,32.64581453,128.96,128.91,31.91581453]
[1750624778057,0.73,128.94,128.9,11.34]
[1750624778280,0.73,128.94,128.91,31.91581453]
[1750624778474,31.91581453,128.97,128.92,31.91581453]
[1750624778650,31.91581453,128.96,128.91,31.91581453]
[1750624778835,0.73,128.96,128.91,31.91581453]
[1750624779034,31.91581453,128.95,128.91,31.91581453]
[1750624779259,18.64964886,128.95,128.89,31.91581453]
[1750624779461,31.91581453,128.94,128.89,31.91581453]
[1750624779646,32.64581453,128.94,128.89,31.91581453]
[1750624779969,32.64581453,128.93,128.89,31.91581453]
[1750624780168,32.64581453,128.93,128.87,26.0]
[1750624780169,0.73,128.93,128.81,7.7633724]
[1750624780385,20.29464886,128.95,128.87,31.91581453]
[1750624780386,32.64581453,128.91,128.87,31.91581453]
[1750624780664,32.64581453,128.91,128.86,31.91581453]
[1750624781341,31.91581453,128.89,128.82,11.34]
[1750624781534,32.64581453,128.88,128.83,31.91581453]
[1750624781784,32.64581453,128.87,128.82,11.34]
[1750624782069,32.64581453,128.86,128.82,43.25581453]
[1750624782563,0.73,128.86,128.82,43.25581453]
[1750624782940,0.73,128.88,128.82,11.34]
[1750624783136,7.9119,128.89,128.85,31.91581453]
[1750624783361,39.82771453,128.89,128.84,31.91581453]
[1750624783569,31.91581453,128.86,128.82,11.34]
[1750624783764,7.1819,128.89,128.85,31.91581453]
[1750624783947,7.1819,128.89,128.87,31.91581453]
[1750624784151,7.9219,128.89,128.83,31.91581453]
[1750624784351,31.91581453,128.88,128.83,31.91581453]
[1750624784582,32.65581453,128.88,128.83,31.91581453]
[1750624785569,0.74,128.87,128.83,31.91581453]
[1750624785776,0.74,128.87,128.82,46.24]
[1750624785991,32.65581453,128.86,128.82,43.25581453]
[1750624786189,19.38964886,128.88,128.82,11.34]
[1750624786391,31.91581453,128.86,128.82,43.25581453]
[1750624786583,32.65581453,128.86,128.82,43.25581453]
[1750624786787,32.65581453,128.86,128.82,11.34]
[1750624787290,0.74,128.85,128.82,11.34]
[1750624788271,0.74,128.84,128.82,11.34]
[1750624788464,31.91581453,128.85,128.82,11.34]
[1750624788678,7.9219,128.89,128.84,31.91581453]
[1750624788899,39.83771453,128.89,128.85,31.91581453]
[1750624789196,31.91581453,128.88,128.84,31.91581453]
[1750624789365,32.65581453,128.88,128.84,31.91581453]
[1750624789796,32.65581453,128.88,128.82,11.34]
[1750624789991,32.65581453,128.86,128.82,43.25581453]
[1750624790294,32.65581453,128.85,128.82,11.34]
[1750624790995,0.74,128.84,128.82,11.34]
[1750624791291,0.74,128.82,128.76,11.34]
[1750624791591,0.74,128.85,128.76,43.25581453]
[1750624791776,31.91581453,128.82,128.76,11.34]
[1750624791966,0.74,128.81,128.77,31.91581453]
[1750624792169,0.74,128.81,128.78,31.91581453]
[1750624792373,31.91581453,128.81,128.76,43.25581453]
[1750624792573,0.74,128.8,128.76,43.25581453]
[1750624792805,0.74,128.8,128.77,31.91581453]
[1750624792979,31.91581453,128.82,128.77,31.91581453]
[1750624793171,18.64964886,128.84,128.76,11.34]
[1750624793172,0.74,128.84,128.8,31.91581453]
[1750624794419,32.65581453,128.83,128.78,34.88]
[1750624794580,32.65581453,128.83,128.76,11.34]
[1750624794581,0.74,128.82,128.76,19.10636489]
[1750624794778,32.65581453,128.84,128.79,31.91581453]
[1750624794973,0.74,128.84,128.81,31.91581453]
[1750624795307,31.91581453,128.86,128.82,31.91581453]
[1750624795602,2.5142,128.87,128.84,31.91581453]
[1750624795825,7.9219,128.89,128.85,31.91581453]
[1750624796188,7.9219,128.89,128.83,34.88]
[1750624796507,32.65581453,128.88,128.83,66.79581453]
[1750624796718,31.91581453,128.88,128.83,66.79581453]
[1750624796914,7.9219,128.89,128.83,66.79581453]
[1750624797079,31.91581453,128.88,128.84,31.91581453]
[1750624797284,32.65581453,128.88,128.83,34.88]
[1750624797483,31.91581453,128.88,128.83,66.79581453]
[1750624797684,7.1819,128.89,128.87,31.91581453]
[1750624798201,7.1819,128.89,128.86,31.91581453]
[1750624798377,7.1819,128.89,128.85,31.91581453]
[1750624798877,7.9219,128.89,128.85,31.91581453]
[1750624799402,7.9219,128.89,128.86,31.91581453]
[1750624799996,7.9219,128.89,128.84,11.28]
[1750624799997,32.65581453,128.87,128.84,11.28]
[1750624800198,7.9219,128.89,128.85,31.91581453]
[1750624800703,0.74,128.88,128.84,43.19581453]
[1750624801025,32.65581453,128.85,128.84,11.28]
[1750624801225,0.74,128.88,128.84,43.19581453]
[1750624801425,0.74,128.88,128.85,31.91581453]
[1750624801727,7.1819,128.89,128.86,31.91581453]
[1750624801896,39.09771453,128.89,128.84,78.07581453]
[1750624802106,7.1819,128.89,128.86,31.91581453]
[1750624802503,7.1819,128.89,128.87,31.91581453]
[1750624802743,7.1819,128.89,128.88,31.91581453]
[1750624803027,1.7742,128.91,128.88,31.91581453]
[1750624803415,1.7742,128.91,128.89,31.91581453]
[1750624804506,0.74,128.96,128.9,31.91581453]
[1750624804708,0.74,128.96,128.94,31.91581453]
[1750624804918,0.74,129.0,128.95,31.91581453]
[1750624805114,7.1472,129.01,128.98,31.91581453]
[1750624805312,1.6255,129.02,128.98,31.91581453]
[1750624805632,0.74,129.04,128.98,66.77581453]
[1750624806011,0.74,129.09,128.98,66.77581453]
[1750624806335,12.74980099,129.12,128.98,74.52895455]
[1750624806336,6.7294,129.06,128.98,74.52895455]
[1750624806536,6.7294,129.06,128.98,66.77581453]
[1750624806845,6.7294,129.06,128.98,78.37774215]
[1750624807244,6.7294,129.1,129.02,26.0]
[1750624807451,6.7294,129.1,129.03,46.12]
[1750624807650,6.7294,129.1,129.07,31.91581453]
[1750624808160,6.7294,129.1,129.06,34.86]
[1750624808328,0.74,129.06,129.03,11.26]
[1750624808532,18.64964886,129.08,129.03,11.26]
[1750624808858,6.7294,129.1,129.07,31.91581453]
[1750624809029,1.6533,129.12,129.09,31.91581453]
[1750624809362,31.91581453,129.13,129.06,34.84]
[1750624809560,31.91581453,129.09,129.04,46.1]
[1750624809734,32.65581453,129.08,129.04,46.1]
[1750624809933,32.65581453,129.06,129.04,11.26]
[1750624810128,32.65581453,129.05,128.98,96.4]
[1750624810456,32.65581453,129.01,128.99,5.74214685]
[1750624810657,31.91581453,129.0,128.95,11.26]
[1750624810829,31.91581453,129.0,128.88,51.3125565]
[1750624810830,0.74,128.99,128.96,5.74202116]
[1750624811029,32.65581453,128.98,128.97,5.74202116]
[1750624811366,56.52546339,128.98,128.92,46.08]
[1750624811567,31.91581453,128.94,128.92,11.26]
[1750624811733,32.65581453,128.94,128.92,11.26]
[1750624811932,51.30546339,128.93,128.86,61.56]
[1750624812133,31.91581453,128.9,128.86,61.56]
[1750624812450,31.91581453,128.89,128.86,61.56]
[1750624812834,0.74,128.92,128.86,61.56]
[1750624813075,31.91581453,128.89,128.86,61.56]
[1750624813356,0.74,128.92,128.86,61.56]
[1750624813357,31.91581453,128.88,128.86,61.56]
[1750624813830,0.74,128.92,128.86,61.56]
[1750624814163,0.7,128.89,128.86,61.56]
[1750624814360,32.61581453,128.88,128.86,61.56]
[1750624814669,31.91581453,128.87,128.86,11.26]
[1750624815250,0.7,128.88,128.86,11.26]
[1750624815452,31.91581453,128.87,128.86,11.26]
[1750624815770,32.61581453,128.87,128.86,11.26]
[1750624816170,0.7,128.86,128.82,34.82]
[1750624816372,31.91581453,128.85,128.8,43.17581453]
[1750624816549,32.61581453,128.86,128.8,11.26]
[1750624816744,0.7,128.86,128.81,31.91581453]
[1750624817053,31.91581453,128.88,128.83,31.91581453]
[1750624817274,31.91581453,128.87,128.83,31.91581453]
[1750624817578,32.61581453,128.85,128.8,43.17581453]
[1750624817942,31.91581453,128.88,128.83,31.91581453]
[1750624818146,19.34964886,128.9,128.83,31.91581453]
[1750624818350,19.34964886,128.9,128.84,31.91581453]
[1750624818351,31.91581453,128.89,128.84,31.91581453]
[1750624818572,31.91581453,128.87,128.83,66.73581453]
[1750624818756,31.91581453,128.87,128.83,34.82]
[1750624819067,31.91581453,128.89,128.84,31.91581453]
[1750624819447,31.91581453,128.89,128.83,34.82]
[1750624819753,31.91581453,128.9,128.86,31.91581453]
[1750624819958,31.91581453,128.9,128.85,31.91581453]
[1750624820151,19.34964886,128.92,128.85,31.91581453]
[1750624820374,31.91581453,128.9,128.85,31.91581453]
[1750624820675,0.7,128.92,128.88,31.91581453]
[1750624820974,7.0237,128.93,128.9,31.91581453]
[1750624821664,31.91581453,128.92,128.88,11.26]
[1750624821862,7.7237,128.93,128.88,11.26]
[1750624821863,39.63951453,128.93,128.88,43.17581453]
[1750624822377,39.63951453,128.93,128.88,11.26]
[1750624822671,31.91581453,128.91,128.88,11.26]
[1750624822869,32.61581453,128.91,128.88,11.26]
[1750624823547,7.0237,128.93,128.83,26.0]
[1750624823548,31.91581453,128.89,128.83,26.0]
[1750624823763,31.91581453,128.86,128.84,5.75484972]
[1750624823955,31.91581453,128.85,128.8,43.17581453]
[1750624824165,31.91581453,128.84,128.81,5.75649024]
[1750624824374,31.91581453,128.83,128.8,11.26]
[1750624824747,31.91581453,128.85,128.81,5.75812536]
[1750624825053,31.91581453,128.85,128.8,43.17581453]
[1750624825253,31.91581453,128.85,128.81,5.75752975]
[1750624825456,31.91581453,128.84,128.8,11.26]
[1750624825673,32.61581453,128.84,128.8,11.26]
[1750624826175,31.91581453,128.81,128.8,11.26]
[1750624826384,19.34964886,128.8,128.72,11.26]
[1750624826554,31.91581453,128.77,128.72,11.26]
[1750624826748,31.91581453,128.76,128.72,11.26]
[1750624826948,0.7,128.8,128.75,31.91581453]
[1750624827166,31.91581453,128.79,128.74,31.91581453]
[1750624827472,32.61581453,128.76,128.72,43.17581453]
[1750624827685,32.61581453,128.76,128.72,11.26]
[1750624827863,32.61581453,128.76,128.72,43.17581453]
[1750624828062,31.91581453,128.75,128.72,11.26]
[1750624828268,44.64964886,128.8,128.72,11.26]
[1750624828470,32.61581453,128.73,128.68,31.91581453]
[1750624828764,31.91581453,128.71,128.67,11.2]
[1750624828969,19.34964886,128.74,128.67,11.2]
[1750624828970,31.91581453,128.69,128.67,11.2]
[1750624829169,31.91581453,128.7,128.67,11.2]
[1750624829388,31.91581453,128.69,128.67,11.2]
[1750624829705,0.7,128.66,128.62,50.34]
[1750624829888,32.61581453,128.66,128.62,50.34]
[1750624830205,32.61581453,128.66,128.62,47.84]
[1750624830586,0.7,128.65,128.62,47.84]
[1750624830774,31.91581453,128.64,128.62,47.84]
[1750624831281,31.91581453,128.63,128.61,11.2]
[1750624831693,31.91581453,128.62,128.61,11.2]
[1750624831874,32.61581453,128.62,128.61,11.2]
[1750624833014,0.7,128.62,128.55,11.2]
[1750624833302,18.64964886,128.61,128.55,11.2]
[1750624833604,31.91581453,128.6,128.55,43.11581453]
[1750624833995,18.64964886,128.61,128.55,11.2]
[1750624834170,31.91581453,128.6,128.56,31.91581453]
[1750624834498,38.14811453,128.61,128.57,31.91581453]
[1750624834675,6.2323,128.61,128.58,31.91581453]
[1750624835384,6.2323,128.61,128.55,53.81886468]
[1750624835594,6.2323,128.61,128.57,31.91581453]
[1750624836490,6.2323,128.61,128.58,31.91581453]
[1750624836809,6.2323,128.61,128.55,46.04]
[1750624836979,1.6007,128.64,128.6,31.91581453]
[1750624837184,1.6007,128.64,128.55,79.8189594]
[1750624837385,31.91581453,128.63,128.55,11.2]
[1750624837705,32.61581453,128.61,128.57,31.91581453]
[1750624838286,0.7,128.61,128.57,31.91581453]
[1750624838805,32.61581453,128.6,128.56,31.91581453]
[1750624839000,32.61581453,128.6,128.55,43.11581453]
[1750624839207,32.61581453,128.6,128.55,11.2]
[1750624839409,32.61581453,128.6,128.55,43.11581453]
[1750624839616,32.61581453,128.6,128.55,11.2]
[1750624839792,31.91581453,128.59,128.55,11.2]
[1750624840109,31.91581453,128.59,128.55,43.11581453]
[1750624840314,31.91581453,128.6,128.56,31.91581453]
[1750624840496,0.7,128.6,128.56,31.91581453]
[1750624840687,0.7,128.6,128.55,43.11581453]
[1750624840688,32.61581453,128.6,128.55,43.11581453]
[1750624840886,31.91581453,128.59,128.55,43.11581453]
[1750624841098,32.61581453,128.59,128.55,11.2]
[1750624841410,32.61581453,128.56,128.51,43.11581453]
[1750624842000,0.7,128.56,128.52,31.91581453]
[1750624842898,32.61581453,128.56,128.52,31.91581453]
[1750624843089,18.64964886,128.6,128.53,31.91581453]
[1750624843290,32.61581453,128.58,128.53,31.91581453]
[1750624843505,32.61581453,128.58,128.51,11.2]
[1750624843792,0.7,128.55,128.51,11.2]
[1750624843997,0.7,128.55,128.51,43.11581453]
[1750624844305,6.1131,128.56,128.51,11.2]
[1750624844615,6.1131,128.56,128.53,31.91581453]
[1750624845010,6.1131,128.56,128.54,31.91581453]
[1750624845323,0.74,128.59,128.55,31.91581453]
[1750624845617,6.1131,128.6,128.58,31.91581453]
[1750624845983,6.1131,128.6,128.57,31.91581453]
[1750624846189,6.1131,128.6,128.52,42.62070787]
[1750624846389,6.1131,128.6,128.56,31.91581453]
[1750624846682,31.91581453,128.58,128.51,37.2]
[1750624846887,26.0,128.56,128.43,6.28740103]
[1750624847103,31.91581453,128.53,128.48,31.91581453]
[1750624847313,32.65581453,128.53,128.48,31.91581453]
[1750624847706,32.65581453,128.53,128.49,31.91581453]
[1750624847885,32.65581453,128.52,128.47,31.91581453]
[1750624848294,31.91581453,128.51,128.47,31.91581453]
[1750624848709,31.91581453,128.51,128.43,39.24257094]
[1750624848710,31.91581453,128.51,128.43,38.74257094]
[1750624849015,18.64964886,128.53,128.47,31.91581453]
[1750624849236,31.91581453,128.52,128.43,46.52888391]
[1750624849525,31.91581453,128.51,128.43,38.74257094]
[1750624849813,0.74,128.51,128.47,31.91581453]
[1750624850187,32.65581453,128.51,128.43,34.86]
[1750624850395,6.598,128.51,128.43,34.86]
[1750624850600,31.91581453,128.5,128.43,34.86]
[1750624850813,31.91581453,128.5,128.46,31.91581453]
[1750624851191,6.598,128.51,128.46,31.91581453]
[1750624851402,0.74,128.5,128.46,31.91581453]
[1750624852314,32.65581453,128.5,128.42,46.08]
[1750624852611,32.65581453,128.5,128.46,31.91581453]
[1750624853325,6.598,128.51,128.47,31.91581453]
[1750624853503,0.74,128.5,128.46,31.91581453]
[1750624853812,31.91581453,128.47,128.42,43.13581453]
[1750624854011,31.91581453,128.46,128.42,43.13581453]
[1750624854225,0.74,128.45,128.42,11.22]
[1750624854390,0.74,128.45,128.36,0.5]
[1750624854391,31.91581453,128.44,128.39,31.91581453]
[1750624854590,50.56546339,128.45,128.4,31.91581453]
[1750624854801,32.65581453,128.43,128.39,31.91581453]
[1750624855092,32.65581453,128.42,128.38,31.91581453]
[1750624855323,31.91581453,128.41,128.36,11.22]
[1750624855609,6.0401,128.42,128.38,31.91581453]
[1750624856017,6.0401,128.42,128.39,31.91581453]
[1750624856211,6.0401,128.42,128.35,1.7140775]
[1750624856408,6.0401,128.42,128.38,31.91581453]
[1750624856593,6.0401,128.42,128.39,31.91581453]
[1750624856792,6.0401,128.42,128.38,31.91581453]
[1750624857119,6.7801,128.42,128.37,31.91581453]
[1750624857323,38.69591453,128.42,128.35,1.7140775]
[1750624857491,31.91581453,128.41,128.35,1.7140775]
[1750624857690,31.91581453,128.41,128.37,31.91581453]
[1750624857922,38.69591453,128.42,128.37,31.91581453]
[1750624858920,32.65581453,128.41,128.36,31.91581453]
[1750624859123,32.65581453,128.41,128.35,1.7140775]
[1750624859124,32.65581453,128.38,128.35,1.7140775]
[1750624859290,6.0401,128.42,128.37,31.91581453]
[1750624859624,51.30546339,128.41,128.37,31.91581453]
[1750624860057,18.64964886,128.38,128.35,1.7140775]
[1750624860258,19.38964886,128.41,128.35,1.7140775]
[1750624860567,32.65581453,128.39,128.35,33.62989203]
[1750624860770,0.74,128.39,128.35,33.62989203]
[1750624860936,51.30546339,128.41,128.36,31.91581453]
[1750624861134,32.65581453,128.4,128.36,31.91581453]
[1750624861442,32.65581453,128.39,128.35,1.7140775]
[1750624861631,18.64964886,128.41,128.35,1.7140775]
[1750624861833,19.38964886,128.41,128.37,31.91581453]
[1750624862036,51.30546339,128.41,128.35,1.7140775]
[1750624862271,19.38964886,128.41,128.36,31.91581453]
[1750624862570,51.30546339,128.41,128.35,1.7140775]
[1750624862732,19.38964886,128.41,128.37,31.91581453]
[1750624862931,0.74,128.41,128.37,31.91581453]
[1750624863159,6.0401,128.42,128.39,31.91581453]
[1750624863579,6.0401,128.42,128.35,1.7140775]
[1750624863767,6.0401,128.42,128.39,31.91581453]
[1750624863965,6.0401,128.42,128.36,11.14]
[1750624864144,6.0401,128.42,128.39,31.91581453]
[1750624864350,6.0401,128.42,128.38,31.91581453]
[1750624864583,6.0401,128.42,128.41,31.91581453]
[1750624864886,0.74,128.45,128.41,31.91581453]
[1750624865052,34.86,128.54,128.36,11.14]
[1750624865053,0.74,128.49,128.44,31.91581453]
[1750624865368,0.74,128.49,128.39,35.36]
[1750624865546,0.74,128.49,128.45,31.91581453]
[1750624866275,1.5804,128.51,128.48,31.91581453]
[1750624866487,1.5804,128.51,128.44,46.0]
[1750624866651,1.5804,128.51,128.48,31.91581453]
[1750624866846,1.5804,128.51,128.47,31.91581453]
[1750624867073,2.3204,128.51,128.47,31.91581453]
[1750624867372,50.56546339,128.5,128.44,46.0]
[1750624867573,50.56546339,128.5,128.45,31.91581453]
[1750624867574,32.65581453,128.49,128.45,31.91581453]
[1750624867756,0.74,128.49,128.45,31.91581453]
[1750624867969,1.5804,128.51,128.44,53.78566699]
[1750624868272,1.5804,128.51,128.47,31.91581453]
[1750624868651,2.3204,128.51,128.47,31.91581453]
[1750624869378,34.23621453,128.51,128.47,31.91581453]
[1750624869591,34.23621453,128.51,128.44,46.0]
[1750624869760,34.23621453,128.51,128.47,31.91581453]
[1750624869954,2.3204,128.51,128.47,31.91581453]
[1750624870281,34.23621453,128.51,128.44,46.0]
[1750624870453,31.91581453,128.5,128.46,31.91581453]
[1750624871055,34.23621453,128.51,128.46,31.91581453]
[1750624871460,31.91581453,128.49,128.45,31.91581453]
[1750624871680,0.74,128.48,128.44,46.0]
[1750624871859,32.65581453,128.48,128.44,77.91581453]
[1750624872067,32.65581453,128.47,128.44,11.14]
[1750624872268,0.74,128.46,128.44,11.14]
[1750624872492,32.65581453,128.46,128.44,11.14]
[1750624872684,0.74,128.46,128.44,11.14]
[1750624872982,32.65581453,128.46,128.44,11.14]
[1750624873179,31.91581453,128.46,128.44,11.14]
[1750624873380,31.91581453,128.48,128.44,43.05581453]
[1750624873675,32.65581453,128.48,128.44,11.14]
[1750624874053,0.74,128.48,128.44,43.05581453]
[1750624874259,1.5804,128.51,128.47,31.91581453]
[1750624874456,1.5804,128.51,128.48,31.91581453]
[1750624874780,1.5804,128.51,128.49,31.91581453]
[1750624874965,31.91581453,128.55,128.5,31.91581453]
[1750624875165,18.64964886,128.55,128.51,31.91581453]
[1750624875964,2.3053,128.56,128.52,31.91581453]
[1750624876178,2.3053,128.56,128.45,27.2479564]
[1750624876179,1.5953,128.56,128.53,31.91581453]
[1750624876399,33.51111453,128.56,128.46,0.5]
[1750624876766,33.51111453,128.56,128.51,31.91581453]
[1750624877089,1.5953,128.56,128.52,31.91581453]
[1750624877276,1.5953,128.56,128.53,31.91581453]
[1750624877481,1.5953,128.56,128.54,31.91581453]
[1750624877881,6.6267,128.58,128.55,31.91581453]
[1750624878187,6.6267,128.68,128.57,64.33162906]
[1750624878367,6.6267,128.68,128.66,31.91581453]
[1750624878772,1.6526,128.7,128.67,31.91581453]
[1750624878976,7.3367,128.74,128.69,31.91581453]
[1750624878977,6.6267,128.74,128.69,31.91581453]
[1750624879174,1.6526,128.76,128.73,31.91581453]
[1750624879383,1.6526,128.76,128.71,31.91581453]
[1750624879384,34.27841453,128.76,128.71,31.91581453]
[1750624879560,18.64964886,128.71,128.7,11.14]
[1750624879769,18.64964886,128.71,128.65,31.91581453]
[1750624879770,50.56546339,128.71,128.65,31.91581453]
[1750624880177,31.91581453,128.69,128.64,43.05581453]
[1750624880486,50.56546339,128.7,128.65,31.91581453]
[1750624880989,31.91581453,128.69,128.64,11.14]
[1750624881198,50.56546339,128.7,128.65,31.91581453]
[1750624881564,6.81,128.75,128.68,31.91581453]
[1750624881766,31.91581453,128.74,128.69,31.91581453]
[1750624882074,6.81,128.75,128.7,31.91581453]
[1750624882075,38.01581453,128.75,128.7,31.91581453]
[1750624882273,31.91581453,128.75,128.71,31.91581453]
[1750624882482,32.62581453,128.75,128.65,34.8]
[1750624882672,32.62581453,128.75,128.7,31.91581453]
[1750624883787,31.91581453,128.74,128.67,7.77166435]
[1750624883964,0.71,128.74,128.69,31.91581453]
[1750624884169,32.62581453,128.74,128.7,31.91581453]
[1750624884575,32.62581453,128.74,128.66,7.77236353]
[1750624884776,32.62581453,128.72,128.67,31.91581453]
[1750624885089,31.91581453,128.7,128.65,31.91581453]
[1750624885291,31.91581453,128.7,128.66,31.91581453]
[1750624885589,31.91581453,128.7,128.65,31.91581453]
[1750624886277,6.1,128.73,128.68,31.91581453]
[1750624886479,18.64964886,128.75,128.72,31.91581453]
[1750624886775,32.62581453,128.73,128.64,18.89353163]
[1750624887083,51.27546339,128.72,128.67,31.91581453]
[1750624887285,51.27546339,128.72,128.65,31.91581453]
[1750624887286,31.91581453,128.7,128.65,31.91581453]
[1750624887471,31.91581453,128.69,128.65,31.91581453]
[1750624887669,31.91581453,128.69,128.64,11.12]
[1750624887879,31.91581453,128.68,128.64,43.03581453]
[1750624888071,32.62581453,128.69,128.64,11.12]
[1750624888381,32.62581453,128.69,128.65,31.91581453]
[1750624889476,0.71,128.69,128.66,31.91581453]
[1750624889673,32.62581453,128.69,128.65,31.91581453]
[1750624889884,6.1,128.68,128.64,11.12]
[1750624890178,38.72581453,128.68,128.64,11.12]
[1750624890380,51.27546339,128.67,128.64,11.12]
[1750624890579,31.91581453,128.66,128.64,11.12]
[1750624890983,18.64964886,128.67,128.6,31.91581453]
[1750624890984,50.56546339,128.65,128.6,31.91581453]
[1750624891189,32.62581453,128.64,128.59,34.76]
[1750624891370,32.62581453,128.64,128.59,66.67581453]
[1750624891791,20.30224886,128.67,128.63,31.91581453]
[1750624891986,1.6526,128.67,128.63,31.91581453]
[1750624892189,1.6526,128.67,128.64,31.91581453]
[1750624893390,1.6526,128.67,128.65,31.91581453]
[1750624893793,1.6526,128.67,128.64,31.91581453]
[1750624893990,1.6526,128.67,128.63,31.91581453]
[1750624894389,1.6526,128.67,128.59,42.53655495]
[1750624894591,1.6526,128.67,128.63,31.91581453]
[1750624894906,33.56841453,128.67,128.59,42.53655495]
[1750624895112,31.91581453,128.64,128.59,66.67581453]
[1750624895283,50.56546339,128.66,128.61,31.91581453]
[1750624895485,34.27841453,128.67,128.63,31.91581453]
[1750624896186,34.27841453,128.67,128.64,31.91581453]
[1750624896187,1.6526,128.67,128.64,31.91581453]
[1750624896602,1.6526,128.67,128.63,31.91581453]
[1750624896903,33.56841453,128.67,128.6,33.77603802]
[1750624897082,33.56841453,128.67,128.63,31.91581453]
[1750624897574,33.56841453,128.67,128.6,26.0]
[1750624897799,33.56841453,128.67,128.63,31.91581453]
[1750624898484,33.56841453,128.67,128.6,26.0]
[1750624898485,34.27841453,128.67,128.6,26.0]
[1750624898690,2.3626,128.67,128.64,31.91581453]
[1750624898889,2.3626,128.67,128.63,31.91581453]
[1750624899102,18.64964886,128.66,128.6,26.0]
[1750624899417,50.56546339,128.66,128.6,26.0]
[1750624899601,51.27546339,128.66,128.61,31.91581453]
[1750624900001,51.27546339,128.66,128.62,31.91581453]
[1750624901088,19.35964886,128.66,128.62,31.91581453]
[1750624902611,6.1,128.68,128.65,31.91581453]
[1750624902809,6.1,128.68,128.61,31.91581453]
[1750624903028,6.1,128.68,128.66,31.91581453]
[1750624903321,6.1,128.68,128.67,31.91581453]
[1750624905420,6.1,128.68,128.66,31.91581453]
[1750624905991,6.1,128.68,128.65,31.91581453]
[1750624906191,18.64964886,128.65,128.6,31.91581453]
[1750624906494,32.65581453,128.64,128.59,42.93581453]
[1750624906691,0.74,128.64,128.6,31.91581453]
[1750624907087,31.91581453,128.67,128.63,31.91581453]
[1750624907292,6.84,128.68,128.64,31.91581453]
[1750624907522,6.84,128.68,128.59,37.02]
[1750624907523,6.84,128.68,128.65,31.91581453]
[1750624908211,6.84,128.68,128.6,42.4758116]
[1750624908212,6.1,128.68,128.67,31.91581453]
[1750624908417,6.1,128.68,128.67,42.93581453]
[1750624908792,1.146028,128.72,128.67,42.93581453]
[1750624908995,1.146028,128.72,128.71,31.91581453]
[1750624910519,1.146028,128.72,128.69,31.91581453]
[1750624910730,0.74,128.7,128.67,42.93581453]
[1750624910903,0.74,128.7,128.67,11.02]
[1750624910904,19.38964886,128.69,128.67,11.02]
[1750624911416,18.64964886,128.67,128.63,31.91581453]
[1750624912118,18.64964886,128.71,128.63,31.91581453]
[1750624912300,19.38964886,128.67,128.63,31.91581453]
[1750624912502,0.74,128.64,128.6,31.91581453]
[1750624912726,32.65581453,128.64,128.57,14.99927249]
[1750624912891,6.4357,128.66,128.57,11.02]
[1750624913094,6.4357,128.66,128.65,31.91581453]
[1750624914092,1.5663,128.68,128.62,7.7746871]
[1750624914298,20.21594886,128.68,128.67,31.91581453]
[1750624915135,1.146028,128.72,128.67,31.91581453]
[1750624915339,1.146028,128.72,128.7,31.91581453]
[1750624915625,18.64964886,128.71,128.7,31.91581453]
[1750624916324,18.64964886,128.71,128.69,31.91581453]
[1750624916623,18.64964886,128.71,128.66,11.02]
[1750624916925,50.56546339,128.7,128.66,42.93581453]
[1750624917223,1.146028,128.72,128.69,31.91581453]
[1750624917224,1.886028,128.72,128.69,31.91581453]
[1750624917409,18.64964886,128.71,128.7,31.91581453]
[1750624917606,1.146028,128.72,128.7,31.91581453]
[1750624917824,18.64964886,128.71,128.69,31.91581453]
[1750624918127,19.38964886,128.71,128.68,31.91581453]
[1750624918606,0.74,128.71,128.69,31.91581453]
[1750624918921,19.38964886,128.71,128.69,31.91581453]
[1750624919229,18.64964886,128.71,128.69,31.91581453]
[1750624921411,18.64964886,128.71,128.66,11.02]
[1750624921412,1.146028,128.72,128.7,31.91581453]
[1750624921628,1.146028,128.72,128.71,31.91581453]
[1750624923506,1.146028,128.72,128.62,10.92]
[1750624923735,1.146028,128.72,128.71,31.91581453]
[1750624923934,1.146028,128.72,128.71,39.68521861]